fUST/lending_fUST_20250408
["ID","MTS","AMOUNT","RATE_DAILY","PERIOD"]
[357395650,1744042242842,-500.0,0.00027397,7]
[357395651,1744042242851,-500.0,0.00027397,7]
[357395652,1744042242862,-500.0,0.00027397,7]
[357395653,1744042242872,-500.0,0.00027397,7]
[357395654,1744042242883,-1000.7,0.00027397,7]
[357395655,1744042242894,-500.0,0.00027397,7]
[357395656,1744042242909,-500.0,0.00027397,7]
[357395657,1744042242919,-500.0,0.00027397,7]
[357395658,1744042242930,-500.0,0.00027397,7]
[357395659,1744042242940,-500.0,0.00027397,7]
[357395660,1744042242950,-500.0,0.00027397,7]
[357395661,1744042242960,-500.0,0.00027397,7]
[357395662,1744042242970,-506.04284673,0.00027397,7]
[357395663,1744042242981,-500.0,0.00027397,7]
[357395664,1744042242990,-500.0,0.00027397,7]
[357395665,1744042243000,-500.0,0.00027397,7]
[357395666,1744042243010,-2059.26,0.00027397,7]
[357395667,1744042243020,-500.0,0.00027397,7]
[357395668,1744042243029,-500.0,0.00027397,7]
[357395669,1744042243039,-593.08,0.00027397,7]
[357395670,1744042243048,-500.0,0.00027397,7]
[357395671,1744042243058,-500.0,0.00027397,7]
[357395672,1744042243068,-500.0,0.00027397,7]
[357395673,1744042243078,-500.0,0.00027397,7]
[357395674,1744042243088,-500.0,0.00027397,7]
[357395675,1744042243097,-500.0,0.00027397,7]
[357395676,1744042243107,-500.0,0.00027397,7]
[357395677,1744042243116,-500.0,0.00027397,7]
[357395678,1744042243127,-500.0,0.00027397,7]
[357395679,1744042243136,-500.0,0.00027397,7]
[357395680,1744042243147,-374.2025567,0.00027397,7]
[357395681,1744042243157,-500.0,0.00027397,7]
[357395682,1744042243167,-500.0,0.00027397,7]
[357395683,1744042243176,-500.0,0.00027397,7]
[357395684,1744042243186,-2535.4,0.00027397,7]
[357395685,1744042243195,-500.0,0.00027397,7]
[357395686,1744042243205,-500.0,0.00027397,7]
[357395687,1744042243214,-500.0,0.00027397,7]
[357395688,1744042243224,-500.0,0.00027397,7]
[357395689,1744042243234,-840.73,0.00027397,7]
[357395690,1744042243244,-810.23,0.00027397,7]
[357395691,1744042243254,-505.31206834,0.00027397,7]
[357395692,1744042243264,-500.0,0.00027397,7]
[357395693,1744042243274,-500.0,0.00027397,7]
[357395694,1744042243283,-500.0,0.00027397,7]
[357395695,1744042243293,-890.62,0.00027397,7]
[357395696,1744042243303,-500.0,0.00027397,7]
[357395697,1744042243313,-500.0,0.00027397,7]
[357395698,1744042243323,-500.0,0.00027397,7]
[357395699,1744042243332,-327.17142732,0.00027397,7]
[357395700,1744042243342,-500.0,0.00027397,7]
[357395701,1744042243351,-500.0,0.00027397,7]
[357395702,1744042243362,-500.0,0.00027397,7]
[357395703,1744042243372,-404.96714042,0.00027397,7]
[357395704,1744042243382,-500.92746142,0.00027397,7]
[357395705,1744042243393,-565.084417,0.00027397,7]
[357395706,1744042243403,-500.0,0.00027397,7]
[357395707,1744042243414,-500.0,0.00027397,7]
[357395708,1744042243425,-500.0,0.00027397,7]
[357395709,1744042243434,-500.0,0.00027397,7]
[357395710,1744042243444,-660.03,0.00027397,7]
[357395711,1744042243454,-500.0,0.00027397,7]
[357395712,1744042243463,-500.0,0.00027397,7]
[357395713,1744042243473,-500.0,0.00027397,7]
[357395714,1744042243483,-500.0,0.00027397,7]
[357395715,1744042243492,-514.28456067,0.00027397,7]
[357395716,1744042243503,-565.084417,0.00027397,7]
[357395717,1744042243512,-500.0,0.00027397,7]
[357395718,1744042243522,-500.0,0.00027397,7]
[357395719,1744042243531,-500.0,0.00027397,7]
[357395720,1744042243541,-500.0,0.00027397,7]
[357395721,1744042243551,-153.85745,0.00027397,7]
[357395722,1744042243561,-153.85745,0.00027397,7]
[357395723,1744042243571,-514.36,0.00027397,7]
[357395724,1744042243580,-151.0,0.00027397,7]
[357395725,1744042243590,-500.0,0.00027397,7]
[357395726,1744042243600,-151.0,0.00027397,7]
[357395728,1744042243610,-153.85745,0.00027397,7]
[357395729,1744042243620,-153.85745,0.00027397,7]
[357395730,1744042243629,-500.0,0.00027397,7]
[357395733,1744042243640,-500.0,0.00027397,7]
[357395735,1744042243653,-336.72266742,0.00027397,7]
[357395737,1744042243663,-500.0,0.00027397,7]
[357395739,1744042243672,-500.0,0.00027397,7]
[357395742,1744042243682,-500.0,0.00027397,7]
[357395744,1744042243693,-511.14517915,0.00027397,7]
[357395745,1744042243703,-500.0,0.00027397,7]
[357395746,1744042243713,-500.0,0.00027397,7]
[357395747,1744042243723,-500.0,0.00027397,7]
[357395748,1744042243734,-500.0,0.00027397,7]
[357395749,1744042243744,-501.78011489,0.00027397,7]
[357395750,1744042243753,-3166.74,0.00027397,7]
[357395751,1744042243763,-500.0,0.00027397,7]
[357395752,1744042243773,-500.0,0.00027397,7]
[357395754,1744042243783,-500.0,0.00027397,7]
[357395756,1744042243792,-357.155134,0.00027397,7]
[357395758,1744042243803,-966.58,0.00027397,7]
[357395760,1744042243812,-500.0,0.00027397,7]
[357395762,1744042243823,-500.0,0.00027397,7]
[357395763,1744042243833,-510.80263629,0.00027397,7]
[357395765,1744042243843,-1154.21,0.00027397,7]
[357395767,1744042243853,-357.155134,0.00027397,7]
[357395769,1744042243863,-500.0,0.00027397,7]
[357395771,1744042243874,-500.0,0.00027397,7]
[357395772,1744042243884,-500.0,0.00027397,7]
[357395773,1744042243898,-500.0,0.00027397,7]
[357395774,1744042243908,-1240.03,0.00027397,7]
[357395775,1744042243922,-500.0,0.00027397,7]
[357395776,1744042243932,-500.0,0.00027397,7]
[357395777,1744042243942,-419.36665037,0.00027397,7]
[357395778,1744042243953,-500.0,0.00027397,7]
[357395779,1744042243965,-503.76882722,0.00027397,7]
[357395780,1744042243975,-500.0,0.00027397,7]
[357395781,1744042243986,-838.39,0.00027397,7]
[357395782,1744042243997,-500.0,0.00027397,7]
[357395783,1744042244007,-500.0,0.00027397,7]
[357395784,1744042244018,-500.0,0.00027397,7]
[357395785,1744042244028,-500.0,0.00027397,7]
[357395786,1744042244040,-500.0,0.00027397,7]
[357395787,1744042244050,-746.18,0.00027397,7]
[357395788,1744042244060,-1930.97,0.00027397,7]
[357395789,1744042244070,-500.0,0.00027397,7]
[357395790,1744042244081,-500.0,0.00027397,7]
[357395791,1744042244092,-500.0,0.00027397,7]
[357395792,1744042244102,-500.0,0.00027397,7]
[357395793,1744042244112,-500.0,0.00027397,7]
[357395794,1744042244123,-500.0,0.00027397,7]
[357395795,1744042244132,-500.0,0.00027397,7]
[357395796,1744042244146,-500.0,0.00027397,3]
[357395797,1744042244156,-759.88,0.00027397,7]
[357395798,1744042244166,-151.0,0.00027397,7]
[357395799,1744042244177,-500.0,0.00027397,7]
[357395800,1744042244187,-500.0,0.00027397,7]
[357395801,1744042244197,-620.81777994,0.00027397,7]
[357395802,1744042244206,-500.0,0.00027397,7]
[357395803,1744042244216,-500.0,0.00027397,7]
[357395804,1744042244226,-461.28221562,0.00027397,7]
[357395805,1744042244237,-500.0,0.00027397,7]
[357395806,1744042244247,-3291.06,0.00027397,7]
[357395807,1744042244259,-500.0,0.00027397,7]
[357395808,1744042244269,-500.0,0.00027397,7]
[357395809,1744042244280,-503.83560905,0.00027397,7]
[357395810,1744042244290,-500.0,0.00027397,7]
[357395811,1744042244300,-519.99328734,0.00027397,7]
[357395812,1744042244311,-505.25880529,0.00027397,7]
[357395813,1744042244322,-500.0,0.00027397,7]
[357395814,1744042244332,-567.62,0.00027397,7]
[357395815,1744042244343,-500.0,0.00027397,7]
[357395816,1744042244352,-523.61766249,0.00027397,7]
[357395817,1744042244362,-500.0,0.00027397,7]
[357395818,1744042244371,-500.0,0.00027397,7]
[357395819,1744042244382,-1888.41,0.00027397,7]
[357395820,1744042244398,-500.0,0.00027397,7]
[357395821,1744042244409,-564.82,0.00027397,7]
[357395822,1744042244419,-500.0,0.00027397,7]
[357395823,1744042244429,-500.0,0.00027397,7]
[357395824,1744042244439,-513.93068889,0.00027397,7]
[357395825,1744042244449,-609.57,0.00027397,7]
[357395826,1744042244459,-1492.54,0.00027397,7]
[357395827,1744042244470,-500.0,0.00027397,7]
[357395828,1744042244480,-1255.14,0.00027397,7]
[357395829,1744042244491,-500.0,0.00027397,7]
[357395831,1744042244501,-500.0,0.00027397,7]
[357395833,1744042244511,-500.0,0.00027397,7]
[357395835,1744042244520,-500.0,0.00027397,7]
[357395837,1744042244530,-1219.04,0.00027397,7]
[357395840,1744042244540,-1076.18,0.00027397,7]
[357395843,1744042244552,-500.0,0.00027397,7]
[357395845,1744042244562,-500.0,0.00027397,7]
[357395846,1744042244572,-500.0,0.00027397,7]
[357395847,1744042244583,-500.0,0.00027397,7]
[357395848,1744042244594,-318.96236435,0.00027397,7]
[357395849,1744042244605,-232.19330383,0.00027397,7]
[357395850,1744042244615,-12527.9349248,0.00027397,7]
[357395851,1744042244625,-500.0,0.00027397,7]
[357395852,1744042244636,-1343.49,0.00027397,7]
[357395853,1744042244651,-500.0,0.00027397,7]
[357395854,1744042244662,-500.0,0.00027397,7]
[357395855,1744042244673,-500.0,0.00027397,7]
[357395856,1744042244684,-2375.74,0.00027397,7]
[357395857,1744042244696,-500.0,0.00027397,7]
[357395858,1744042244706,-500.0,0.00027397,7]
[357395859,1744042244716,-930.52,0.00027397,7]
[357395860,1744042244727,-565.79,0.00027397,7]
[357395861,1744042244737,-919.44,0.00027397,7]
[357395862,1744042244896,-500.0,0.00027397,7]
[357395863,1744042244911,-500.0,0.00027397,7]
[357395864,1744042244921,-500.0,0.00027397,7]
[357395865,1744042244931,-500.0,0.00027397,7]
[357395866,1744042244940,-500.0,0.00027397,7]
[357395867,1744042244951,-1144.77,0.00027397,7]
[357395868,1744042244960,-2134.93,0.00027397,7]
[357395869,1744042244971,-500.0,0.00027397,7]
[357395870,1744042244980,-917.63,0.00027397,7]
[357395871,1744042244992,-500.0,0.00027397,7]
[357395873,1744042245002,-13904.87,0.00027397,7]
[357395875,1744042245011,-541.61,0.00027397,7]
[357395877,1744042245021,-500.0,0.00027397,7]
[357395879,1744042245032,-500.0,0.00027397,7]
[357395881,1744042245041,-500.0,0.00027397,7]
[357395883,1744042245051,-528.69,0.00027397,7]
[357395885,1744042245061,-540.48,0.00027397,7]
[357395887,1744042245070,-510.75034186,0.00027397,7]
[357395889,1744042245081,-500.0,0.00027397,7]
[357395891,1744042245091,-2753.46,0.00027397,7]
[357395893,1744042245101,-1732.44,0.00027397,7]
[357395895,1744042245110,-500.0,0.00027397,7]
[357395897,1744042245120,-500.0,0.00027397,7]
[357395899,1744042245130,-636.27,0.00027397,7]
[357395902,1744042245139,-500.0,0.00027397,7]
[357395904,1744042245151,-500.0,0.00027397,7]
[357395906,1744042245161,-500.0,0.00027397,7]
[357395908,1744042245171,-2659.01127664,0.00027397,120]
[357395910,1744042245180,-612.52,0.00027397,7]
[357395912,1744042245190,-503.37,0.00027397,7]
[357395914,1744042245199,-500.0,0.00027397,7]
[357395916,1744042245209,-500.0,0.00027397,7]
[357395918,1744042245218,-500.0,0.00027397,7]
[357395920,1744042245227,-500.0,0.00027397,7]
[357395922,1744042245237,-3362.26,0.00027397,7]
[357395924,1744042245247,-500.0,0.00027397,7]
[357395926,1744042245257,-500.0,0.00027397,7]
[357395928,1744042245266,-500.0,0.00027397,7]
[357395930,1744042245276,-500.0,0.00027397,7]
[357395932,1744042245286,-3486.47,0.00027397,7]
[357395934,1744042245295,-1184.4,0.00027397,7]
[357395936,1744042245305,-500.0,0.00027397,7]
[357395938,1744042245314,-500.0,0.00027397,7]
[357395940,1744042245323,-151.0,0.00027397,7]
[357395942,1744042245333,-151.0,0.00027397,7]
[357395944,1744042245342,-636.980377,0.00027397,7]
[357395946,1744042245351,-500.0,0.00027397,7]
[357395948,1744042245361,-500.0,0.00027397,7]
[357395950,1744042245370,-619.988383,0.00027397,7]
[357395952,1744042245379,-619.988383,0.00027397,7]
[357395954,1744042245389,-500.0,0.00027397,7]
[357395956,1744042245402,-526.33,0.00027397,7]
[357395958,1744042245412,-500.0,0.00027397,7]
[357395960,1744042245422,-500.0,0.00027397,7]
[357395962,1744042245432,-636.980377,0.00027397,7]
[357395964,1744042245442,-500.0,0.00027397,7]
[357395967,1744042245451,-500.0,0.00027397,7]
[357395969,1744042245461,-619.988383,0.00027397,7]
[357395972,1744042245471,-619.988383,0.00027397,7]
[357395974,1744042245482,-500.0,0.00027397,7]
[357395976,1744042245492,-918.51,0.00027397,7]
[357395978,1744042245502,-500.0,0.00027397,7]
[357395981,1744042245512,-500.0,0.00027397,7]
[357395983,1744042245521,-990.11,0.00027397,7]
[357395984,1744042245531,-503.33388567,0.00027397,7]
[357395986,1744042245540,-500.0,0.00027397,7]
[357395989,1744042245550,-500.0,0.00027397,7]
[357395990,1744042245560,-1839.61,0.00027397,7]
[357395993,1744042245570,-500.0,0.00027397,7]
[357395995,1744042245579,-500.0,0.00027397,7]
[357395998,1744042245588,-500.0,0.00027397,7]
[357396001,1744042245598,-151.0,0.00027397,7]
[357396002,1744042245607,-500.0,0.00027397,7]
[357396005,1744042245617,-151.0,0.00027397,7]
[357396007,1744042245626,-311.551078,0.00027397,7]
[357396009,1744042245635,-500.0,0.00027397,7]
[357396010,1744042245645,-311.551078,0.00027397,7]
[357396013,1744042245655,-500.0,0.00027397,7]
[357396015,1744042245664,-204.70767763,0.00027397,7]
[357396017,1744042245674,-500.0,0.00027397,7]
[357396019,1744042245683,-500.0,0.00027397,7]
[357396021,1744042245694,-500.0,0.00027397,7]
[357396023,1744042245703,-311.551078,0.00027397,7]
[357396025,1744042245713,-2600.42,0.00027397,7]
[357396027,1744042245723,-500.0,0.00027397,7]
[357396029,1744042245733,-311.551078,0.00027397,7]
[357396031,1744042245742,-500.0,0.00027397,7]
[357396033,1744042245751,-500.0,0.00027397,7]
[357396035,1744042245761,-500.0,0.00027397,7]
[357396037,1744042245770,-500.0,0.00027397,7]
[357396039,1744042245779,-151.0,0.00027397,3]
[357396041,1744042245789,-500.0,0.00027397,7]
[357396043,1744042245800,-633.22,0.00027397,7]
[357396045,1744042245810,-151.0,0.00027397,3]
[357396047,1744042245819,-500.0,0.00027397,7]
[357396049,1744042245828,-151.0,0.00027397,3]
[357396051,1744042245838,-151.0,0.00027397,3]
[357396053,1744042245848,-500.0,0.00027397,7]
[357396055,1744042245857,-500.0,0.00027397,7]
[357396057,1744042245867,-4684.93,0.00027397,7]
[357396059,1744042245877,-500.0,0.00027397,7]
[357396061,1744042245886,-500.0,0.00027397,7]
[357396063,1744042245897,-500.0,0.00027397,7]
[357396065,1744042245906,-2658.084154,0.00027397,7]
[357396067,1744042245921,-2658.084154,0.00027397,7]
[357396069,1744042245931,-500.0,0.00027397,7]
[357396071,1744042245940,-500.0,0.00027397,7]
[357396073,1744042245950,-163.382346,0.00027397,7]
[357396075,1744042245961,-500.0,0.00027397,7]
[357396077,1744042245970,-500.0,0.00027397,7]
[357396079,1744042245979,-500.0,0.00027397,7]
[357396081,1744042245989,-2658.084154,0.00027397,7]
[357396083,1744042245998,-500.0,0.00027397,7]
[357396085,1744042246008,-500.0,0.00027397,7]
[357396087,1744042246018,-2658.084154,0.00027397,7]
[357396089,1744042246028,-500.0,0.00027397,7]
[357396091,1744042246038,-500.0,0.00027397,7]
[357396092,1744042246047,-500.0,0.00027397,7]
[357396093,1744042246056,-537.0,0.00027397,7]
[357396094,1744042246065,-500.0,0.00027397,7]
[357396095,1744042246075,-500.0,0.00027397,7]
[357396096,1744042246086,-500.0,0.00027397,7]
[357396097,1744042246095,-2654.48,0.00027397,7]
[357396098,1744042246105,-500.0,0.00027397,7]
[357396099,1744042246114,-500.0,0.00027397,7]
[357396100,1744042246124,-500.0,0.00027397,7]
[357396101,1744042246134,-500.0,0.00027397,7]
[357396102,1744042246145,-865.09,0.00027397,7]
[357396103,1744042246155,-555.54,0.00027397,7]
[357396104,1744042246164,-500.0,0.00027397,7]
[357396105,1744042246174,-500.0,0.00027397,7]
[357396106,1744042246184,-1189.960806,0.00027397,7]
[357396107,1744042246194,-1189.960806,0.00027397,7]
[357396108,1744042246204,-500.0,0.00027397,7]
[357396109,1744042246213,-529.9,0.00027397,7]
[357396110,1744042246223,-500.0,0.00027397,7]
[357396111,1744042246233,-500.0,0.00027397,7]
[357396112,1744042246243,-410.50165702,0.00027397,7]
[357396113,1744042246253,-500.0,0.00027397,7]
[357396114,1744042246262,-1916.9,0.00027397,7]
[357396115,1744042246272,-500.0,0.00027397,7]
[357396116,1744042246281,-1189.960806,0.00027397,7]
[357396117,1744042246291,-1738.08,0.00027397,7]
[357396118,1744042246301,-500.0,0.00027397,7]
[357396119,1744042246311,-1189.960806,0.00027397,7]
[357396120,1744042246321,-500.0,0.00027397,7]
[357396121,1744042246332,-5953.77,0.00027397,7]
[357396122,1744042246341,-500.0,0.00027397,7]
[357396123,1744042246352,-5953.77,0.00027397,7]
[357396124,1744042246362,-5953.77,0.00027397,7]
[357396126,1744042246372,-5953.77,0.00027397,7]
[357396127,1744042246383,-5953.77,0.00027397,7]
[357396128,1744042246392,-500.0,0.00027397,7]
[357396129,1744042246402,-5953.77,0.00027397,7]
[357396130,1744042246411,-505.28549691,0.00027397,7]
[357396131,1744042246421,-5953.77,0.00027397,7]
[357396132,1744042246430,-500.0,0.00027397,7]
[357396133,1744042246440,-5953.77,0.00027397,7]
[357396134,1744042246451,-1111.42,0.00027397,7]
[357396135,1744042246460,-5953.77,0.00027397,7]
[357396136,1744042246469,-160.0,0.00027397,7]
[357396137,1744042246479,-3337.82,0.00027397,7]
[357396138,1744042246489,-5953.77,0.00027397,7]
[357396139,1744042246499,-5953.77,0.00027397,7]
[357396140,1744042246508,-500.0,0.00027397,7]
[357396141,1744042246518,-5953.77,0.00027397,7]
[357396142,1744042246527,-3577.22,0.00027397,7]
[357396143,1744042246537,-500.0,0.00027397,7]
[357396144,1744042246546,-165.45566777,0.00027397,7]
[357396145,1744042246555,-5953.77,0.00027397,7]
[357396146,1744042246565,-500.0,0.00027397,7]
[357396147,1744042246574,-5953.77,0.00027397,7]
[357396149,1744042246584,-5953.77,0.00027397,7]
[357396151,1744042246594,-5953.77,0.00027397,7]
[357396153,1744042246603,-5953.77,0.00027397,7]
[357396155,1744042246612,-554.13463457,0.00027397,7]
[357396157,1744042246622,-5953.77,0.00027397,7]
[357396159,1744042246631,-5953.77,0.00027397,7]
[357396161,1744042246640,-5953.77,0.00027397,7]
[357396163,1744042246651,-500.0,0.00027397,7]
[357396165,1744042246660,-5953.77,0.00027397,7]
[357396166,1744042246670,-5953.77,0.00027397,7]
[357396167,1744042246679,-500.0,0.00027397,7]
[357396168,1744042246690,-5953.77,0.00027397,7]
[357396169,1744042246699,-5953.92083962,0.00027397,7]
[357396170,1744042246708,-500.0,0.00027397,7]
[357396171,1744042246718,-500.0,0.00027397,7]
[357396172,1744042246727,-1017.88,0.00027397,7]
[357396173,1744042246737,-160.0,0.00027397,7]
[357396174,1744042246746,-500.0,0.00027397,7]
[357396175,1744042246756,-500.0,0.00027397,7]
[357396176,1744042246765,-500.0,0.00027397,7]
[357396177,1744042246775,-500.0,0.00027397,7]
[357396178,1744042246785,-3449.37,0.00027397,7]
[357396179,1744042246794,-500.0,0.00027397,7]
[357396180,1744042246804,-2903.61,0.00027397,7]
[357396181,1744042246815,-599.84,0.00027397,7]
[357396182,1744042246825,-500.0,0.00027397,7]
[357396183,1744042246835,-500.0,0.00027397,7]
[357396184,1744042246844,-500.0,0.00027397,7]
[357396185,1744042246854,-573.64,0.00027397,7]
[357396186,1744042246863,-539.1728689,0.00027397,7]
[357396187,1744042246873,-2706.7,0.00027397,7]
[357396188,1744042246882,-500.0,0.00027397,7]
[357396189,1744042246892,-850.7,0.00027397,7]
[357396190,1744042246905,-2698.13,0.00027397,7]
[357396191,1744042246915,-515.57189982,0.00027397,7]
[357396192,1744042246925,-3880.2,0.00027397,7]
[357396193,1744042246935,-500.0,0.00027397,7]
[357396194,1744042246944,-500.0,0.00027397,7]
[357396195,1744042246954,-500.0,0.00027397,7]
[357396196,1744042246964,-503.94,0.00027397,7]
[357396197,1744042246974,-616.73,0.00027397,7]
[357396198,1744042246983,-500.0,0.00027397,7]
[357396199,1744042246995,-500.0,0.00027397,7]
[357396200,1744042247005,-500.0,0.00027397,7]
[357396201,1744042247015,-360.29701975,0.00027397,7]
[357396202,1744042247024,-500.0,0.00027397,7]
[357396203,1744042247034,-500.53198428,0.00027397,7]
[357396204,1744042247043,-500.0,0.00027397,7]
[357396205,1744042247053,-500.0,0.00027397,7]
[357396206,1744042247063,-555.63294281,0.00027397,7]
[357396207,1744042247073,-500.0,0.00027397,7]
[357396208,1744042247083,-500.0,0.00027397,7]
[357396209,1744042247093,-500.0,0.00027397,7]
[357396210,1744042247102,-500.0,0.00027397,7]
[357396211,1744042247112,-151.0,0.00027397,7]
[357396212,1744042247122,-151.0,0.00027397,7]
[357396213,1744042247131,-500.0,0.00027397,7]
[357396214,1744042247140,-500.0,0.00027397,7]
[357396215,1744042247152,-450.92584082,0.00027397,7]
[357396216,1744042247162,-1831.07,0.00027397,7]
[357396217,1744042247171,-1036.12,0.00027397,7]
[357396218,1744042247181,-500.0,0.00027397,7]
[357396219,1744042247191,-151.0,0.00027397,7]
[357396220,1744042247200,-500.0,0.00027397,7]
[357396221,1744042247210,-151.0,0.00027397,7]
[357396222,1744042247220,-500.0,0.00027397,7]
[357396223,1744042247230,-500.0,0.00027397,7]
[357396224,1744042247239,-502.74550643,0.00027397,7]
[357396225,1744042247249,-500.0,0.00027397,7]
[357396226,1744042247259,-500.0,0.00027397,7]
[357396227,1744042247269,-500.0,0.00027397,7]
[357396228,1744042247279,-500.0,0.00027397,7]
[357396229,1744042247288,-554.5,0.00027397,7]
[357396230,1744042247297,-1273.51,0.00027397,7]
[357396231,1744042247307,-688.53,0.00027397,7]
[357396232,1744042247316,-500.0,0.00027397,7]
[357396233,1744042247326,-500.0,0.00027397,7]
[357396234,1744042247336,-500.0,0.00027397,7]
[357396235,1744042247345,-500.0,0.00027397,7]
[357396236,1744042247355,-514.26587344,0.00027397,7]
[357396237,1744042247364,-1450.01,0.00027397,7]
[357396238,1744042247375,-500.0,0.00027397,7]
[357396239,1744042247384,-151.0,0.00027397,7]
[357396240,1744042247393,-151.0,0.00027397,7]
[357396241,1744042247404,-500.0,0.00027397,7]
[357396242,1744042247414,-1719.49,0.00027397,7]
[357396243,1744042247423,-3797.28,0.00027397,7]
[357396244,1744042247432,-500.0,0.00027397,7]
[357396245,1744042247442,-500.0,0.00027397,7]
[357396246,1744042247451,-500.0,0.00027397,7]
[357396247,1744042247460,-500.0,0.00027397,7]
[357396248,1744042247470,-151.0,0.00027397,7]
[357396249,1744042247480,-152.422976,0.00027397,7]
[357396250,1744042247489,-500.0,0.00027397,7]
[357396251,1744042247499,-500.0,0.00027397,7]
[357396252,1744042247509,-1677.41,0.00027397,7]
[357396253,1744042247519,-151.0,0.00027397,7]
[357396254,1744042247529,-500.0,0.00027397,7]
[357396255,1744042247538,-151.0,0.00027397,7]
[357396256,1744042247549,-539.76,0.00027397,7]
[357396257,1744042247558,-500.0,0.00027397,7]
[357396258,1744042247567,-2269.69,0.00027397,7]
[357396259,1744042247577,-500.0,0.00027397,7]
[357396260,1744042247586,-500.0,0.00027397,7]
[357396261,1744042247595,-500.0,0.00027397,7]
[357396262,1744042247604,-2854.12,0.00027397,7]
[357396263,1744042247614,-500.0,0.00027397,7]
[357396264,1744042247624,-623.55,0.00027397,7]
[357396265,1744042247633,-607.41058538,0.00027397,7]
[357396266,1744042247642,-502.26587209,0.00027397,7]
[357396267,1744042247653,-500.0,0.00027397,7]
[357396268,1744042247662,-500.0,0.00027397,7]
[357396269,1744042247671,-640.56834106,0.00027397,7]
[357396270,1744042247681,-628.02892113,0.00027397,7]
[357396271,1744042247690,-500.0,0.00027397,7]
[357396272,1744042247699,-500.0,0.00027397,7]
[357396273,1744042247708,-500.0,0.00027397,7]
[357396274,1744042247718,-500.0,0.00027397,7]
[357396275,1744042247727,-151.0,0.00027397,7]
[357396276,1744042247737,-151.0,0.00027397,7]
[357396277,1744042247746,-500.0,0.00027397,7]
[357396278,1744042247756,-2791.54,0.00027397,7]
[357396279,1744042247765,-500.0,0.00027397,7]
[357396280,1744042247775,-500.0,0.00027397,7]
[357396281,1744042247785,-500.0,0.00027397,7]
[357396282,1744042247937,-500.0,0.00027397,7]
[357396283,1744042247947,-1063.73,0.00027397,7]
[357396284,1744042247957,-500.0,0.00027397,7]
[357396285,1744042247967,-500.0,0.00027397,7]
[357396286,1744042247978,-500.0,0.00027397,7]
[357396287,1744042247988,-500.0,0.00027397,7]
[357396288,1744042247998,-857.68,0.00027397,7]
[357396289,1744042248008,-151.0,0.00027397,7]
[357396290,1744042248018,-500.0,0.00027397,7]
[357396291,1744042248028,-151.0,0.00027397,7]
[357396292,1744042248038,-500.0,0.00027397,7]
[357396293,1744042248048,-151.0,0.00027397,7]
[357396294,1744042248057,-151.0,0.00027397,7]
[357396295,1744042248067,-500.0,0.00027397,7]
[357396296,1744042248077,-3817.7,0.00027397,7]
[357396297,1744042248087,-500.0,0.00027397,7]
[357396298,1744042248097,-3817.7,0.00027397,7]
[357396299,1744042248107,-3817.7,0.00027397,7]